Cogmind - Beta 12 @@@ ROGUE MODE // 2023.04.15 @ 10:59:03 Player: Exp. Geonium Core Result: Destroyed by Z-Imprinter with Zionite Laser-M Performance ------------- Evolutions (3) 1500 Regions Visited (12) 2400 Robots Destroyed (117) 585 Value Destroyed (2850) 2850 Prototype IDs (32) 640 Alien Tech Used (0) 0 Bonus (586) 586 TOTAL SCORE: 8561 Bonus ------- High Alert Combat Kills 89 Follower Combat Kills 197 Aligned with FarCom 300 Cogmind --------- Core Integrity 0/700 Matter 28/300 Energy 100/100 System Corruption 0% Temperature Cool (9) Movement Walking (120) Location -7/Deep Caves Parts ------- > --- POWER (1) -------- (None) > --- PROPULSION (4) --- Advanced Myomer Leg > --- UTILITY (6) ------ Improved Signal Interpreter Advanced Targeting Computer Experimental Core Analyzer > --- WEAPON (2) ------- Great Maul > --- INVENTORY (5) ---- Improved Armor Integrity Analyzer Bomb Factory No. 2 EM Shotgun Peak State ------------ > --- POWER ------------ Reinforced Fission Core > --- PROPULSION ------- Advanced Myomer Leg Armored Wheel Armored Huge Wheel > --- UTILITY ---------- Huge Storage Unit Sensor Array Improved Signal Interpreter Advanced Targeting Computer Experimental Core Analyzer Hardened Medium Armor Plating > --- WEAPON ----------- 8R-AWN's Boregun 8R-AWN's Boregun > --- INVENTORY -------- Cold Fusion Reactor Medium Treads Advanced Myomer Leg Combat Antigrav System Advanced Targeting Computer Experimental Targeting Computer Advanced Launcher Guidance Computer Improved Armor Integrity Analyzer Advanced Weapon Cycler Transmission Jammer Makeshift System Shield Advanced Recalibrator Bomb Factory No. 2 EM Shotgun Light EM Pulse Cannon Improved EM Pulse Cannon Autogun Mini Grenade Launcher Mini Grenade Launcher Datajack Plasma Cutter Great Maul Shock Trap [Rating: 75] Favorites ----------- Power Reinforced Fission Core Engine Ion Engine Power Core Reinforced Fission Core Propulsion Armored Wheel Treads Light Treads Leg Advanced Myomer Leg Wheel Armored Wheel Utility Huge Storage Unit Device Sensor Array Storage Huge Storage Unit Processor Advanced Targeting Computer Hackware Hacking Suite Protection Medium Armor Plating Weapon 8R-AWN's Boregun Energy Gun Medium Laser Energy Cannon Light EM Pulse Cannon Ballistic Gun 8R-AWN's Boregun Ballistic Cannon Light Cannon Launcher Mini Grenade Launcher Impact Weapon Great Maul Slashing Weapon Chainsword Build | -11 -10 -10 -9 -9 -9 -8 -8 -7 -7 -7 -7 -7 ------- Run | Jun Mat Min Mat Min Exi Min Mat Fac Low Low Zio Dee Slots Evolved 6 | . . . 2 . . . 2 2 . . . . Power . | . . . . . . . . . . . . . Propulsion 2 | . . . 1 . . . 1 . . . . . Utility 4 | . . . 1 . . . 1 2 . . . . Weapon . | . . . . . . . . . . . . . Parts Attached 89 | . 8 2 17 8 15 . 7 11 2 2 4 13 Power 5 | . . . 3 1 1 . . . . . . . Engine 3 | . . . 2 1 . . . . . . . . Core 2 | . . . 1 . 1 . . . . . . . Reactor . | . . . . . . . . . . . . . Propulsion 26 | . 5 . 6 3 8 . 1 . . . . 3 Treads 11 | . 3 . 3 1 3 . . . . . . 1 Leg 4 | . . . . . 2 . . . . . . 2 Wheel 11 | . 2 . 3 2 3 . 1 . . . . . Hover . | . . . . . . . . . . . . . Flight . | . . . . . . . . . . . . . Utility 27 | . 2 1 6 1 3 . 3 6 . . 3 2 Device 5 | . . . . . 1 . . 2 . . 2 . Storage 1 | . 1 . . . . . . . . . . . Processor 7 | . . . 2 . 2 . . 1 . . . 2 Hackware 3 | . . . . . . . 1 2 . . . . Protection 11 | . 1 1 4 1 . . 2 1 . . 1 . Artifact . | . . . . . . . . . . . . . Weapon 31 | . 1 1 2 3 3 . 3 5 2 2 1 8 Energy Gun . | . . . . . . . . . . . . . Energy Cannon 1 | . . . . . . . 1 . . . . . Ballistic Gun 15 | . . . 2 2 2 . 2 1 1 2 . 3 Ballistic Cannon 1 | . 1 . . . . . . . . . . . Launcher 10 | . . 1 . 1 . . . 3 1 . . 4 Special Weapon . | . . . . . . . . . . . . . Impact Weapon 3 | . . . . . . . . 1 . . 1 1 Slashing Weapon 1 | . . . . . 1 . . . . . . . Piercing Weapon . | . . . . . . . . . . . . . Special Melee Weapon . | . . . . . . . . . . . . . Unidentified Prototypes 6 | . . . 3 . 2 . . . . . 1 . Parts Lost 21 | . . 1 2 1 5 . . . . . . 12 Power 2 | . . . 1 . . . . . . . . 1 Propulsion 8 | . . . . . 4 . . . . . . 4 Utility 5 | . . 1 1 . 1 . . . . . . 2 Weapon 6 | . . . . 1 . . . . . . . 5 Highest Loss Streak 12 | . . 1 1 1 5 . . . . . . 12 To Critical Strikes 4 | . . . . . 4 . . . . . . . Average Slot Usage (%) 94 | . 95 99 99 99 90 100 89 92 92 92 87 77 Engine 6 | . 14 14 4 11 8 . . . . . . . Core 3 | . . . 6 . 2 11 9 7 7 7 7 5 Treads 7 | . 17 14 11 11 5 . . . . . . 2 Leg 3 | . 5 . . . 2 11 9 7 7 7 7 6 Wheel 16 | . 4 14 22 21 20 22 18 15 15 15 15 10 Device 2 | . . . . . 1 . . 6 7 7 6 4 Storage 10 | . 14 14 11 11 11 11 9 7 7 7 7 5 Processor 9 | . . . 3 11 13 22 15 15 15 15 15 22 Hackware 1 | . . . . . . . 8 7 7 7 2 . Protection 8 | . 9 13 17 11 4 . 3 6 7 7 7 4 Ballistic Gun 14 | . 14 7 15 22 20 22 17 2 5 10 11 5 Ballistic Cannon 3 | . 13 14 1 . . . . . . . . . Launcher 1 | . . 6 4 . . . . 6 1 1 . 6 Impact Weapon 1 | . . . . . . . . 4 7 1 3 . Naked Turns . | . . . . . . . . . . . . . Heaviest Build 122 | 14 97 97 104 101 114 113 118 119 120 119 120 122 Greatest Support 60 | 20 40 10 24 24 60 24 40 40 40 40 40 40 Greatest Overweight (x) 9 | . 9 9 5 8 4 4 4 2 2 2 2 3 Average Overweight (x) 3 | . 2 8 4 4 3 4 2 2 2 2 2 2 Largest Inventory Capacity 25 | . 25 25 25 25 25 25 25 25 25 25 25 25 Average Capacity 24 | . 18 25 25 25 25 25 25 25 25 25 25 21 Most Carried 25 | . 18 25 25 25 25 25 25 24 22 23 25 25 Average Carried 21 | . 10 22 24 24 20 24 24 22 22 21 24 20 Final Capacity 25 | 8 25 25 25 25 25 25 25 25 25 25 25 5 Final Carried 25 | 6 18 25 25 25 25 25 25 22 22 23 25 4 Class Distribution -------------------- 75% | Mutant 24% | Scavenger-Mutant Dominant Class ---------------- Mutant | -10/Materials Mutant | -10/Mines Mutant | -9/Materials Mutant | -9/Mines Mutant | -9/Exiles Mutant | -8/Mines Mutant | -8/Materials Scavenger-Mutant | -7/Factory Scavenger-Mutant | -7/Lower Caves Scavenger-Mutant | -7/Lower Caves Mutant | -7/Zion Mutant | -7/Deep Caves Resources | -11 -10 -10 -9 -9 -9 -8 -8 -7 -7 -7 -7 -7 ----------- Run | Jun Mat Min Mat Min Exi Min Mat Fac Low Low Zio Dee Matter Collected 3156 | 200 354 128 692 195 767 . 226 401 119 50 24 . Remotely . | . . . . . . . . . . . . . Salvage Created 3542 | . 582 219 1013 334 416 . 368 434 40 110 . 26 Parts 270 | . 40 9 86 18 70 . 20 16 4 6 . 1 Haulers Intercepted 5 | . 1 . 4 . . . . . . . . . Recyclers Shooed 3 | . . 1 2 . . . . . . . . . Parts Field Recycled . | . . . . . . . . . . . . . Retrieved Matter . | . . . . . . . . . . . . . Parts Self-Destructed 21 | . . . . . . . . . 15 6 . . Prevented 1 | . . . . . . . . . . 1 . . Kills | -11 -10 -10 -9 -9 -9 -8 -8 -7 -7 -7 -7 -7 ------- Run | Jun Mat Min Mat Min Exi Min Mat Fac Low Low Zio Dee Combat Hostiles Destroyed 77 | . 10 9 24 5 4 . 7 13 . 2 . 3 Melee 3 | . . . . . . . . 3 . . . . Guns 29 | . 1 1 11 4 4 . 6 1 . 1 . . Cannons 18 | . 9 5 3 . . . 1 . . . . . AOE 26 | . . 3 10 1 . . . 9 . . . 3 Classes Destroyed 18 | . 8 1 2 1 3 . 1 . 1 . . 1 Worker 12 | . 1 1 9 1 . . . . . . . . Builder 2 | . 1 . . . . . . 1 . . . . Tunneler 5 | . 1 . . 1 . . . 3 . . . . Hauler 5 | . 1 . 4 . . . . . . . . . Recycler 3 | . 1 . . 1 . . . 1 . . . . Minesweeper 1 | . . . . . . . . . 1 . . . Operator 3 | . 1 . 1 . . . 1 . . . . . Turret 1 | . . . . . 1 . . . . . . . Watcher 6 | . 3 . 2 . . . 1 . . . . . Swarmer 18 | . . 5 10 . . . 3 . . . . . Grunt 39 | . 10 4 8 3 . . . 13 . 1 . . Brawler 1 | . . . 1 . . . . . . . . . Duelist 3 | . . . . 2 . . . . . 1 . . Sentry 7 | . . . 5 . . . 2 . . . . . Hunter 2 | . . . . . . . 2 . . . . . Zionite 5 | . . . . . 5 . . . . . . . Z-Light 1 | . . . . . . . . . . . . 1 Assembled 5 | . . . . . 3 . . . . . . 2 Best Kill Streak 13 | . 3 3 13 3 6 . 3 8 1 1 . 2 Combat Bots Only 7 | . 3 3 5 3 2 . 3 7 . 1 . 2 Max Kills in Single Turn 5 | . 2 2 3 1 2 . 1 5 1 1 . 1 Gunslinging . | . . . . . . . . . . . . . Exploded 4 | . . 2 3 1 . . . 4 . . . 1 Melee 1 | . . . . . . . . 1 . . . . Uniques/NPCs Destroyed 4 | . . . . . 4 . . . . . . . EX-BIN (-9/Exiles) EX-DEC (-9/Exiles) EX-HEX (-9/Exiles) 8R-AWN (-9/Exiles) Combat | -11 -10 -10 -9 -9 -9 -8 -8 -7 -7 -7 -7 -7 -------- Run | Jun Mat Min Mat Min Exi Min Mat Fac Low Low Zio Dee Damage Taken 5478 | . 275 299 864 518 807 . 312 302 50 128 . 1923 Core 1107 | . 72 6 96 72 116 . 41 3 . 31 . 670 Absorbed by Shields . | . . . . . . . . . . . . . Core Remaining (%) 72 | 100 . 68 . . . 29 92 . . . . . Volleys Fired 306 | . 42 22 93 18 56 . 33 12 11 3 . 16 Largest 2 | . 2 2 2 2 2 . 2 2 1 2 . 2 Hottest 79 | . 55 55 46 53 60 . 79 60 30 53 . 60 Shots Fired 532 | . 84 32 143 36 112 . 66 19 11 6 . 23 Gun 404 | . 42 10 112 35 112 . 61 5 10 6 . 11 Cannon 88 | . 42 20 21 . . . 5 . . . . . Launcher 40 | . . 2 10 1 . . . 14 1 . . 12 Special . | . . . . . . . . . . . . . Kinetic 487 | . 84 30 133 35 112 . 61 5 10 6 . 11 Thermal . | . . . . . . . . . . . . . Explosive 40 | . . 2 10 1 . . . 14 1 . . 12 Electromagnetic 5 | . . . . . . . 5 . . . . . Robot Hit Streak 13 | . 10 6 13 12 9 . 12 7 5 4 . 5 Robot Miss Streak 7 | . 4 2 2 2 7 . 5 1 1 1 . 4 Penetration Max 2 | . . . . . 2 . 2 . . . . . Secondary Targets 3 | . . . 1 1 . . 1 . . . . . Max Gunslinging Chain 1 | . . . 1 1 . . 1 . . . . . Shots Hit Robots 367 | . 52 22 96 28 84 . 38 19 7 7 . 14 Core Hits 205 | . 30 12 54 12 32 . 17 23 7 2 . 16 Critical Kills 11 | . . . . . 4 . 4 2 . 1 . . Critical Parts Destroyed 22 | . . . . . 11 . 8 . 1 . . 2 Critical Strikes 43 | . . . . . 24 . 12 2 1 1 . 3 Destroy 38 | . . . . . 22 . 12 . 1 1 . 2 Smash 3 | . . . . . . . . 2 . . . 1 Sever 2 | . . . . . 2 . . . . . . . Melee Attacks 68 | . . . . . 32 . . 14 . 3 15 4 Impact 36 | . . . . . . . . 14 . 3 15 4 Slashing 32 | . . . . . 32 . . . . . . . Piercing . | . . . . . . . . . . . . . Sneak Attacks 6 | . . . . . . . . 6 . . . . Combat Hostiles . | . . . . . . . . . . . . . Follow-up Attacks . | . . . . . . . . . . . . . Damage Inflicted 10432 | . 805 478 2252 490 2067 . 628 2553 151 155 . 853 Guns 4013 | . 317 99 1214 415 1160 . 536 62 112 35 . 63 Cannons 1065 | . 467 248 258 . . . 92 . . . . . Explosions 3348 | . . 131 779 75 . . . 1653 39 . . 671 Melee 1984 | . . . . . 907 . . 838 . 120 . 119 Ramming 22 | . 21 . 1 . . . . . . . . . Kinetic 4986 | . 784 347 1472 415 1160 . 536 62 112 35 . 63 Thermal 691 | . . . . . . . . 691 . . . . Explosive 2657 | . . 131 779 75 . . . 962 39 . . 671 Electromagnetic 92 | . . . . . . . 92 . . . . . Impact 1077 | . . . . . . . . 838 . 120 . 119 Slashing 907 | . . . . . 907 . . . . . . . Piercing . | . . . . . . . . . . . . . Highest Corruption . | . . . . . . . . . . . . . Average Corruption . | . . . . . . . . . . . . . Corruption Purged . | . . . . . . . . . . . . . Corruption Blocked . | . . . . . . . . . . . . . Overload Shots . | . . . . . . . . . . . . . Overflow Damage 556 | . . . 17 . 32 . . 406 . 36 . 65 Projectiles . | . . . . . . . . . . . . . Explosions 177 | . . . 17 . . . . 158 . . . 2 Melee 379 | . . . . . 32 . . 248 . 36 . 63 Knockbacks 14 | . 4 3 2 . . . . 3 . . . 2 Impact 5 | . . . . . . . . 3 . . . 2 Kinetic 8 | . 4 2 2 . . . . . . . . . Secondary 1 | . . 1 . . . . . . . . . . Self-Inflicted Damage 128 | . . 30 41 12 . . . 45 . . . . Shots 7 | . . 2 1 1 . . . 3 . . . . Rammed 5 | . 4 . 1 . . . . . . . . . Targets Rammed 8 | . 7 . 1 . . . . . . . . . Kicked 2 | . 2 . . . . . . . . . . . Crushed 1 | . 1 . . . . . . . . . . . Highest Temperature 182 | . 27 72 55 18 4 . 182 63 . 55 . 78 Average Temperature 21 | . 7 29 20 6 1 . 31 29 . 27 . 29 Received Heat Transfer 1290 | . 159 93 300 36 . . 18 135 9 18 . 522 Siege Activations . | . . . . . . . . . . . . . Robots Corrupted . | . . . . . . . . . . . . . Combat Hostiles . | . . . . . . . . . . . . . Parts Fried 8 | . . . . . . . 1 5 . 2 . . Impact Corruptions 15 | . . . . . . . . 9 . 2 . 4 Robots Melted . | . . . . . . . . . . . . . Combat Hostiles . | . . . . . . . . . . . . . Parts Melted 1 | . . . . . . . . 1 . . . . Heat Transferred 500 | . . . . . . . . 500 . . . . Parts Sabotaged . | . . . . . . . . . . . . . Parts Stolen . | . . . . . . . . . . . . . Parts Stripped . | . . . . . . . . . . . . . Power Chain Reactions . | . . . . . . . . . . . . . Missiles Intercepted . | . . . . . . . . . . . . . Alert | -11 -10 -10 -9 -9 -9 -8 -8 -7 -7 -7 -7 -7 ------- Run | Jun Mat Min Mat Min Exi Min Mat Fac Low Low Zio Dee Peak Influence 523 | . 192 179 509 258 . . 335 523 . . . . Initial 198 | . . 64 19 198 . . . 77 . . . . Average 166 | . 65 66 310 129 . . 179 364 . . . . Maximum Alert Level 2 | . . . 2 1 . . 1 2 . . . . Low Security (%) 67 | . 100 100 24 67 . 100 63 23 . . . . Level 1 21 | . . . 48 32 . . 36 22 . . . . Level 2 11 | . . . 27 . . . . 53 . . . . Level 3 . | . . . . . . . . . . . . . Level 4 . | . . . . . . . . . . . . . Level 5 . | . . . . . . . . . . . . . High Security . | . . . . . . . . . . . . . Max Security . | . . . . . . . . . . . . . Squads Dispatched 8 | . 2 . 3 1 . . . 2 . . . . Investigation 5 | . 1 . 1 1 . . . 2 . . . . Extermination . | . . . . . . . . . . . . . Reinforcement 3 | . 1 . 2 . . . . . . . . . Assault . | . . . . . . . . . . . . . Garrison . | . . . . . . . . . . . . . Intercept . | . . . . . . . . . . . . . Searches Triggered . | . . . . . . . . . . . . . Construction Impeded . | . . . . . . . . . . . . . Haulers Reinforced . | . . . . . . . . . . . . . Active Scanning Responses . | . . . . . . . . . . . . . Cargo Convoy Interrupts . | . . . . . . . . . . . . . Stealth | -11 -10 -10 -9 -9 -9 -8 -8 -7 -7 -7 -7 -7 --------- Run | Jun Mat Min Mat Min Exi Min Mat Fac Low Low Zio Dee Distress Signals 5 | . 3 . 1 . . . . 1 . . . . Communications Jammed . | . . . . . . . . . . . . . Distress Signals . | . . . . . . . . . . . . . Times Spotted 159 | . 22 10 33 8 41 . 14 14 9 2 . 6 Peak Tracking Total 11 | . 3 3 6 3 11 . 3 3 7 3 . 3 Tactical Retreats 24 | . 1 . . . 20 . . 1 . 1 . 1 Traps | -11 -10 -10 -9 -9 -9 -8 -8 -7 -7 -7 -7 -7 ------- Run | Jun Mat Min Mat Min Exi Min Mat Fac Low Low Zio Dee Traps Triggered 2 | . . . 1 . . . . 1 . . . . Indirectly . | . . . . . . . . . . . . . Trap Hack Attempts . | . . . . . . . . . . . . . Triggered . | . . . . . . . . . . . . . Disarmed . | . . . . . . . . . . . . . Reprogrammed . | . . . . . . . . . . . . . Reused 1 | . . . . . . . . . . 1 . . Traps Extracted . | . . . . . . . . . . . . . Installed 1 | . . . . . . . . . . 1 . . Triggered 1 | . . . . . . . . . . 1 . . Most Traps Carried 4 | . . 4 4 4 4 2 2 2 2 2 1 1 Exploded 3 | . . . . . 3 . . . . . . . Machines | -11 -10 -10 -9 -9 -9 -8 -8 -7 -7 -7 -7 -7 ---------- Run | Jun Mat Min Mat Min Exi Min Mat Fac Low Low Zio Dee Machines Disabled 31 | . 1 3 1 . 18 . 3 5 . . . . Max in Single Turn 5 | . 1 1 1 . 2 . 1 5 . . . . Machines Repaired . | . . . . . . . . . . . . . Machines Sabotaged . | . . . . . . . . . . . . . Overloaded Fab Kills . | . . . . . . . . . . . . . Hacking | -11 -10 -10 -9 -9 -9 -8 -8 -7 -7 -7 -7 -7 --------- Run | Jun Mat Min Mat Min Exi Min Mat Fac Low Low Zio Dee Machines Accessed 16 | . 4 . 1 1 2 . 5 3 . . . . Terminals 10 | . 3 . . . . . 5 2 . . . . Fabricators . | . . . . . . . . . . . . . Repair Stations . | . . . . . . . . . . . . . Recycling Units 2 | . 1 . 1 . . . . . . . . . Scanalyzers 1 | . . . . . . . . 1 . . . . Garrison Access . | . . . . . . . . . . . . . Total Hacks 37 | . 12 . 2 1 2 . 13 7 . . . . Successful 19 | . 5 . 1 1 2 . 6 4 . . . . Failed 18 | . 7 . 1 . . . 7 3 . . . . Catastrophic 3 | . . . . . . . 3 . . . . . Database Lockouts . | . . . . . . . . . . . . . Manual 19 | . 7 . . . 1 . 10 1 . . . . Terminals 26 | . 9 . . . . . 13 4 . . . . Fabricators . | . . . . . . . . . . . . . Repair Stations . | . . . . . . . . . . . . . Recycling Units 5 | . 3 . 2 . . . . . . . . . Scanalyzers 3 | . . . . . . . . 3 . . . . Garrison Access . | . . . . . . . . . . . . . Terminal Hacks 11 | . 2 . . 1 2 . 4 2 . . . . Record 1 | . . . . . 1 . . . . . . . Open Door 1 | . . . . 1 . . . . . . . . Level Access Points 1 | . . . . . . . 1 . . . . . Branch Access Points 2 | . 1 . . . . . . 1 . . . . Terminal Index 2 | . 1 . . . . . 1 . . . . . Transport Status 1 | . . . . . . . 1 . . . . . Hauler Manifests 1 | . . . . . . . 1 . . . . . Zone Layout 1 | . . . . . . . . 1 . . . . EX-Prototype ID Bank 1 | . . . . . 1 . . . . . . . Fabricator Hacks . | . . . . . . . . . . . . . Repair Station Hacks . | . . . . . . . . . . . . . Recycling Unit Hacks 2 | . 1 . 1 . . . . . . . . . Report Inventory 1 | . 1 . . . . . . . . . . . Retrieve Components 1 | . . . 1 . . . . . . . . . Scanalyzer 2 | . . . . . . . . 2 . . . . Insert Component 1 | . . . . . . . . 1 . . . . Analyze 1 | . . . . . . . . 1 . . . . Garrison Access Hacks . | . . . . . . . . . . . . . Unauthorized Hacks 4 | . 2 . . . . . 2 . . . . . Terminals 3 | . 1 . . . . . 2 . . . . . Botnet 2 | . 1 . . . . . 1 . . . . . Operators 1 | . . . . . . . 1 . . . . . Fabricators . | . . . . . . . . . . . . . Repair Stations . | . . . . . . . . . . . . . Recycling Units 1 | . 1 . . . . . . . . . . . Tunnel 1 | . 1 . . . . . . . . . . . Scanalyzers . | . . . . . . . . . . . . . Garrison Access . | . . . . . . . . . . . . . Data Cores Recovered 1 | . . . . . . . 1 . . . . . Used . | . . . . . . . . . . . . . Hacking Detections 10 | . 2 . . . . . 5 3 . . . . Full Trace Events 1 | . . . . . . . . 1 . . . . Feedback Events . | . . . . . . . . . . . . . Feedback Blocked . | . . . . . . . . . . . . . Robot Schematics Acquired 3 | . . . . . . . . . . . 3 . Robots Built . | . . . . . . . . . . . . . Authchips . | . . . . . . . . . . . . . Time . | . . . . . . . . . . . . . Total Robot Build Rating . | . . . . . . . . . . . . . Part Schematics Acquired 16 | . . . . . . . . 1 . . 15 . Parts Built . | . . . . . . . . . . . . . Authchips . | . . . . . . . . . . . . . Time . | . . . . . . . . . . . . . Total Part Build Rating . | . . . . . . . . . . . . . Parts Repaired . | . . . . . . . . . . . . . Time . | . . . . . . . . . . . . . Parts Recycled . | . . . . . . . . . . . . . Recycled Matter . | . . . . . . . . . . . . . Retrieved Matter . | . . . . . . . . . . . . . Retrieved Components 3 | . . . 3 . . . . . . . . . Parts Scanalyzed 1 | . . . . . . . . 1 . . . . Part Schematics Acquired 1 | . . . . . . . . 1 . . . . Parts Damaged . | . . . . . . . . . . . . . Bothacking | -11 -10 -10 -9 -9 -9 -8 -8 -7 -7 -7 -7 -7 ------------ Run | Jun Mat Min Mat Min Exi Min Mat Fac Low Low Zio Dee Used RIF Installer . | . . . . . . . . . . . . . Robots Hacked . | . . . . . . . . . . . . . Non-combat . | . . . . . . . . . . . . . Combat . | . . . . . . . . . . . . . Robot Hacks Applied . | . . . . . . . . . . . . . Relay Couplers Released . | . . . . . . . . . . . . . Fabnet Peak Effective % . | . . . . . . . . . . . . . Robots Rewired . | . . . . . . . . . . . . . Allies Hacked . | . . . . . . . . . . . . . Hacks Repelled . | . . . . . . . . . . . . . Allies | -11 -10 -10 -9 -9 -9 -8 -8 -7 -7 -7 -7 -7 -------- Run | Jun Mat Min Mat Min Exi Min Mat Fac Low Low Zio Dee Total Allies 3 | . . . . . . . . 3 . . . . Largest Group 3 | . . . . . . . . 3 3 . . . Highest-Rated Group 93 | . . . . . . . . 93 93 . . . Highest-Rated Ally 31 | . . . . . . . . 31 31 . . . Total Orders . | . . . . . . . . . . . . . Ally Attacks 32 | . . . . . . . . 2 30 . . . Total Damage 417 | . . . . . . . . 40 377 . . . Kills 7 | . . . . . . . . 1 6 . . . Allies Corrupted . | . . . . . . . . . . . . . Allies Melted . | . . . . . . . . . . . . . Intel | -11 -10 -10 -9 -9 -9 -8 -8 -7 -7 -7 -7 -7 ------- Run | Jun Mat Min Mat Min Exi Min Mat Fac Low Low Zio Dee Robot Analysis Total . | . . . . . . . . . . . . . Derelict Logs Recovered 4 | . . 1 . 1 . . . . . . 2 . Drone Launches . | . . . . . . . . . . . . . Drone Recoveries . | . . . . . . . . . . . . . Exploration | -11 -10 -10 -9 -9 -9 -8 -8 -7 -7 -7 -7 -7 ------------- Run | Jun Mat Min Mat Min Exi Min Mat Fac Low Low Zio Dee Turns Passed 9742 | . 1099 1081 1143 1169 1665 217 453 647 495 609 998 166 Spaces Moved 5343 | 1 474 468 562 537 838 140 249 432 349 466 750 77 Core 6 | . . . . . . . . . . . . 6 Treads 195 | . 191 . . . 4 . . . . . . . Legs 144 | 1 138 . . . . . . . . . . 5 Wheels 4998 | . 145 468 562 537 834 140 249 432 349 466 750 66 Hover . | . . . . . . . . . . . . . Flight . | . . . . . . . . . . . . . Fastest Speed 50 | 120 120 200 140 150 135 150 125 125 125 125 125 50 Average Speed 148 | 120 188 214 148 150 150 150 137 125 125 125 125 124 Slowest Speed 320 | 120 320 215 155 210 240 150 150 125 125 125 125 145 Overloaded Moves . | . . . . . . . . . . . . . Propulsion Burnouts . | . . . . . . . . . . . . . Robots Hopped . | . . . . . . . . . . . . . Cave-ins Triggered . | . . . . . . . . . . . . . Exploration Rate (%) 53 | 2 84 94 48 83 89 40 28 13 60 60 81 19 Regions Visited 12 Branch Regions 8 Pre-discovered Areas 3 | . 1 . . . 1 . . . . . 1 . Known Exits Taken 8 | . 1 . 1 . . 1 1 1 1 1 1 . Unknown Exits Taken 4 | 1 . 1 . 1 1 . . . . . . . Scrap Searched 8 | . . 2 . . . 2 . . 1 1 2 . Spaces Dug 28 | . . 23 . . 1 . . 2 . . 2 . Terrain Destroyed 251 | . . 23 43 13 17 . 11 85 7 1 2 49 Melee 5 | . . . . . 1 . . 2 . . 2 . Projectile 30 | . . . . . 15 . 11 . 2 1 . 1 AOE 214 | . . 23 43 13 . . . 83 4 . . 48 Terrain Rammed . | . . . . . . . . . . . . . Walls Destroyed . | . . . . . . . . . . . . . Machines Disabled . | . . . . . . . . . . . . . Actions | -11 -10 -10 -9 -9 -9 -8 -8 -7 -7 -7 -7 -7 --------- Run | Jun Mat Min Mat Min Exi Min Mat Fac Low Low Zio Dee Total 6506 | . 594 513 734 864 1092 148 300 490 396 480 781 114 Wait 539 | . 31 8 32 291 103 7 3 19 35 3 6 1 Move 5331 | . 473 467 561 536 837 139 248 431 348 465 749 77 Hop . | . . . . . . . . . . . . . Pick Up 83 | . 20 11 12 6 24 1 3 1 . 2 2 1 Fast Attach 17 | . 3 . 3 1 4 . 3 . . . 2 1 Attach 24 | . 2 1 4 1 5 . . 4 . . 1 6 Detach 3 | . 1 . . . 1 . . . . . 1 . Swap 48 | . 3 1 10 6 6 . 4 7 2 2 1 6 Drop 78 | . 12 3 18 5 24 1 6 2 . 1 4 2 Fire 306 | . 42 22 93 18 56 . 33 12 11 3 . 16 Melee 68 | . . . . . 32 . . 14 . 3 15 4 Ram . | . . . . . . . . . . . . . Kick 2 | . 2 . . . . . . . . . . . Crush 6 | . 5 . 1 . . . . . . . . . Escape Stasis . | . . . . . . . . . . . . . Rewire . | . . . . . . . . . . . . . Trap 1 | . . . . . . . . . . 1 . . Miscellaneous . | . . . . . . . . . . . . . Route ------- -11/Junkyard -10/Materials (discovered 3 exits: *Mat x2 / *Min) -10/Mines (discovered 2 exits: *Mat x2) -9/Materials (discovered 3 exits: *Mat x2 / *Min) -9/Mines (discovered 4 exits: *Mat x2 / *Exi / *Zio) -9/Exiles -8/Mines -8/Materials (discovered 3 exits: *Fac x3) -7/Factory (discovered 2 exits: *Low x2) -7/Lower Caves -7/Lower Caves (discovered 2 exits: [*Fac] / *Zio) -7/Zion (discovered 2 exits: *Dee / [*Pro]) -7/Deep Caves History --------- Turn | Location | Event 1 | -11/Junkyard | Discovered new exit (range 0) 1 | -11/Junkyard | Entered Materials 303 | -10/Materials | Discovered new exit (range 16) 356 | -10/Materials | Build established: Mutant 570 | -10/Materials | Identified exit to Mines 621 | -10/Materials | Discovered new exit (range 16) 1100 | -10/Materials | Entered Mines 1479 | -10/Mines | Found a hidden stash of uninstalled traps 1543 | -10/Mines | Discovered new exit (range 8) 1668 | -10/Mines | Learned location of 2 exits from Materials 2097 | -10/Mines | Discovered new exit (range 10) 2181 | -10/Mines | Entered Materials 2181 | -9/Materials | Evolved 2 slots: Propulsion x1, Utility x1 2182 | -9/Materials | Identified exit to Mines 2182 | -9/Materials | Identified exit to Materials 2809 | -9/Materials | Discovered exit to Materials (range 15) 3324 | -9/Materials | Entered Mines 3527 | -9/Mines | Assembled infested the area 3913 | -9/Mines | Discovered exit to Materials (range 13) 3923 | -9/Mines | A Derelict revealed a hidden shortcut to a safe place 4261 | -9/Mines | Discovered exit to Materials (range 5) 4292 | -9/Mines | Received a Rocket Launcher from a helpful Derelict 4312 | -9/Mines | Deemed a non-threat by the Exiles lab entrance 4312 | -9/Mines | Discovered new exit (range 5) 4364 | -9/Mines | Met a Derelict shopkeep closing up shop 4493 | -9/Mines | Entered Exiles 4529 | -9/Exiles | Met 8R-AWN 4556 | -9/Exiles | Met EX-HEX 4625 | -9/Exiles | Met EX-DEC 4631 | -9/Exiles | Learned location of Zion (-7) 4851 | -9/Exiles | Met EX-BIN 4872 | -9/Exiles | Aligned with FarCom system 4874 | -9/Exiles | Given EX-Vault access code 4910 | -9/Exiles | Opened EX-Vault 4943 | -9/Exiles | Warned to stay clear of 0b10 Research branches 5011 | -9/Exiles | Attacked by the Exiles 5132 | -9/Exiles | Core integrity fell below 50% 5178 | -9/Exiles | Lost 5 parts (4n1u) 5183 | -9/Exiles | Found Prototype Ballistic Gun 5183 | -9/Exiles | Identified 8R-AWN's Boregun 5186 | -9/Exiles | Found 8R-AWN's Boregun 5505 | -9/Exiles | Destroyed EX-BIN 5668 | -9/Exiles | Destroyed EX-DEC 5680 | -9/Exiles | Destroyed EX-HEX 5746 | -9/Exiles | Destroyed 8R-AWN 5780 | -9/Exiles | Found Prototype Processor 5817 | -9/Exiles | Identified Exp. Targeting Computer 5845 | -9/Exiles | Found Prototype Processor 5853 | -9/Exiles | Identified Exp. Core Analyzer 6141 | -9/Exiles | Discovered new exit (range 14) 6158 | -9/Exiles | Entered Mines 6356 | -8/Mines | Discovered exit to Materials (range 14) 6375 | -8/Mines | Entered Materials 6375 | -8/Materials | Evolved 2 slots: Propulsion x1, Utility x1 6376 | -8/Materials | Identified exit to Factory 6828 | -8/Materials | Entered Factory 6828 | -7/Factory | Evolved 2 slots: Utility x2 6938 | -7/Factory | Identified exit to Lower Caves 7040 | -7/Factory | Destroyed 7 combat bots 7143 | -7/Factory | Build established: Scavenger-Mutant 7341 | -7/Factory | Allied Derelicts emerged from ambush trap array 7475 | -7/Factory | Entered Lower Caves 7475 | -7/Lower Caves | Accompanied by 3 allies 7564 | -7/Lower Caves | Encountered a Warlord checkpoint 7959 | -7/Lower Caves | Discovered new exit (range 11) 7968 | -7/Lower Caves | Attracted the attention of an 0b10 outpost 7969 | -7/Lower Caves | Identified exit to Lower Caves 7970 | -7/Lower Caves | Entered another Lower Caves area 8000 | -7/Lower Caves | Discovered new exit (range 5) 8522 | -7/Lower Caves | Discovered new exit (range 14) 8540 | -7/Lower Caves | Identified exit to Zion 8579 | -7/Lower Caves | Entered Zion 8688 | -7/Zion | Discovered new exit (range 13) 8975 | -7/Zion | Found Prototype Device 8985 | -7/Zion | Identified Bomb Factory No. 2 9160 | -7/Zion | Given A8's code to call for help 9270 | -7/Zion | Build established: Mutant 9572 | -7/Zion | Discovered new exit (range 5) 9573 | -7/Zion | Saw the warning signs outside the Deep Caves entrance 9575 | -7/Zion | Identified exit to Deep Caves 9577 | -7/Zion | Entered Deep Caves 9670 | -7/Deep Caves | Attacked by Z-Imprinter 9727 | -7/Deep Caves | Core integrity fell below 50% 9737 | -7/Deep Caves | Core integrity fell below 20% 9743 | -7/Deep Caves | Destroyed by Z-Imprinter with Zionite Laser-M Last Messages --------------- 09713_ Rnf. Fission Core destroyed. 09717_ Mni. Grenade Launcher destroyed. 09718_ Dropped Huge Storage Unit. 09719_ The unstable cave ceiling collapses. 09720_ Acquired Adv. Myomer Leg. 09720_ Exp. Targeting Computer destroyed. 09722_ The unstable cave ceiling collapses. 09724_ Dropped Cold Fusion Reactor. 09724_ Acquired Great Maul. 09730_ Adv. Myomer Leg destroyed. 09732_ Destroyed Prototype Hover Unit. 09732_ Destroyed Prototype Protection. 09732_ Z-Imprinter system corrupted by crushing effect. 09732_ Z-Imprinter knocked back. 09735_ The unstable cave ceiling collapses. 09739_ Z-Imprinter suffers critical hit (Smash). 09739_ Destroyed Prototype Hover Unit. 09739_ Destroyed Prototype Protection. 09739_ Z-Imprinter system corrupted by crushing effect. 09739_ Z-Imprinter knocked back. Map ----- +----------------------------------------------------+ | | | | | | | | | | | | | | | | | | | | | ?????????????????????????????????????????????????? | | ?????????????????????????????????????????????????? | | ?????????????????????????????????????????????????? | | ??????????????????????????????????#??????????????? | | ??????????????????#####??????????? ??????????????? | | ???????# # ????### #?????????? ??????????????? | | ????? ##### ?????????? #?????????????? | | ?? ?????????? #?????????????? | | ?????????# #?????????????? | | #?????????# #?????????????? | | #?????????# #?????????????? | | ##??##????# #?????????????? | | ### ###### #?????????????? | | ####????? #???? | | I ###### #???? | | @ #???? | | ###### ##### #???? | | # #???# ##???# #???? | | # #???# ##????# #???? | | #???## ######## #???? | | ##????# ### ##??? | | # ##?????# ## #??? | | ! * ###??????# # #??? | | ]!! #????????# ##?? | | !=!! ##????????# #?# | | /&! #?????????## ## | | |]! #?????????### | | #???????????#### " | | ##??????????????# """ | | "#??????????### ## "" | | " ##???????# | | " ????????# | | " ???????# ###### | | ?? #?????????????### | | ????? ##???????????????# | | ??????? #?????????? | | ????????? #?????????? # # | | ??????????? ??????????? ######### | | ?????????????? ?????????? ??????????## | | ???????????????? ???????????????????????## | +----------------------------------------------------+ Best States ------------- Heat Dissipation 34 Energy Generation 19 Energy Capacity 310 Matter Stores 300 Matter Capacity 300 Sight Range 16 Robot Scan Range 14 Terrain Scan Density 10 Armor Coverage 450 Evasion (%) 55 Targeting Accuracy 20 Core Analysis 8 Recoil Reduction 3 Salvage Targeting 4 Offensive Hacking 20 Defensive Hacking 10 Item Schematics ----------------- Cmb. Antigrav System | -7/Factory | Scanalyzed Component Analysis Suite | -7/Zion | Archive Lyr. Medium Armor Plating | -7/Zion | Archive Matter Filter | -7/Zion | Archive Mak. Laser | -7/Zion | Archive Force Booster | -7/Zion | Archive Imp. Particle Charger | -7/Zion | Archive Nuclear Pulse Thruster | -7/Zion | Archive Antigrav System | -7/Zion | Archive Bore Cannon | -7/Zion | Archive Mak. Spear | -7/Zion | Archive Imp. Corruption Screen | -7/Zion | Archive Mak. Sword | -7/Zion | Archive Lgt. Fission Core | -7/Zion | Archive Mak. Axe | -7/Zion | Archive Focal Shield | -7/Zion | Archive Robot Schematics ------------------ B-48 Gladiator | -7/Zion | Archive S-27 Virus | -7/Zion | Archive X-82 Rainmaker | -7/Zion | Archive Fabricated ------------ Nothing Alien Tech Used ----------------- None Achievements -------------- None Challenges ------------ None Game ------ Seed IonIntegratedSuite Manual? 0 Play Time 01:01:46 Cumulative 399.8 hours Start 2023.04.15 @ 09:55:13 End 2023.04.15 @ 10:59:03 Sessions 1 Manual Loads 0 Difficulty Rogue Special Mode None Game No. 440 Rogue 440 Adventurer 0 Explorer 0 Win Type - Total 12 Types 8/0/3/1/0/0/0/0/0 Lore% 81 Gallery% 89 Achievement% 79 Wizard Run 0 Options --------- ASCII 0 Keyboard 0 Movement Numpad Keybinds 0 Fullscreen 1 Font 18/Terminus Map View 76x50 Tactical HUD 1 Map Filters NONE Filters NONE Steam 1 RUN: b31b2e9e-1078-4c11-90fb-a531eedfdd57